fUSD/lending_fUSD_20250330
["ID","MTS","AMOUNT","RATE_DAILY","PERIOD"]
[356865197,1743343838651,-500.0,0.00054794,120]
[356865198,1743343838661,-520.49031369,0.00054794,120]
[356865199,1743343838670,-528.46,0.00054794,120]
[356865200,1743343838679,-500.0,0.00054794,120]
[356865201,1743343838688,-500.0,0.00054794,120]
[356865202,1743343838697,-500.0,0.00054794,120]
[356865203,1743343838706,-500.0,0.00054794,120]
[356865204,1743343838716,-500.0,0.00054794,120]
[356865205,1743343838726,-500.0,0.00054794,120]
[356865206,1743343838735,-500.0,0.00054794,120]
[356865207,1743343838745,-500.0,0.00054794,120]
[356865208,1743343838754,-528.35629338,0.00054794,120]
[356865209,1743343838764,-510.65604358,0.00054794,120]
[356865210,1743343838773,-500.0,0.00054794,120]
[356865211,1743343838782,-500.0,0.00054794,120]
[356865212,1743343838791,-2937.8,0.00054794,120]
[356865213,1743343838801,-519.31281663,0.00054794,120]
[356865214,1743343838810,-500.0,0.00054794,120]
[356865215,1743343838819,-584.66698968,0.00054794,120]
[356865216,1743343838828,-5274.73,0.00054794,120]
[356865217,1743343838838,-500.0,0.00054794,120]
[356865218,1743343838847,-169.54604838,0.00054794,120]
[356865219,1743343838856,-500.0,0.00054794,120]
[356865220,1743343838865,-500.0,0.00054794,120]
[356865221,1743343838874,-1126.97,0.00054794,100]
[356865222,1743343838883,-500.0,0.00054794,120]
[356865223,1743343838893,-500.0,0.00054794,120]
[356865224,1743343838902,-500.0,0.00054794,120]
[356865225,1743343838911,-500.0,0.00054794,120]
[356865226,1743343838921,-500.0,0.00054794,120]
[356865227,1743343838930,-500.0,0.00054794,120]
[356865228,1743343838939,-500.0,0.00054794,120]
[356865229,1743343838948,-500.0,0.00054794,120]
[356865230,1743343838957,-1743.81,0.00054794,120]
[356865231,1743343838967,-500.0,0.00054794,120]
[356865232,1743343838976,-500.0,0.00054794,120]
[356865233,1743343838985,-500.0,0.00054794,120]
[356865234,1743343838995,-500.0,0.00054794,120]
[356865235,1743343839005,-500.0,0.00054794,120]
[356865236,1743343839015,-500.0,0.00054794,120]
[356865237,1743343839024,-500.0,0.00054794,120]
[356865238,1743343839033,-500.0,0.00054794,120]
[356865239,1743343839043,-368.65384541,0.00054794,120]
[356865240,1743343839052,-500.0,0.00054794,120]
[356865241,1743343839061,-500.0,0.00054794,120]
[356865242,1743343839071,-1080.79,0.00054794,120]
[356865243,1743343839080,-500.0,0.00054794,120]
[356865244,1743343839089,-522.6202627,0.00054794,120]
[356865245,1743343839098,-500.0,0.00054794,120]
[356865246,1743343839205,-542.04,0.00054794,120]
[356865247,1743343839228,-500.0,0.00054794,120]
[356865248,1743343839237,-500.0,0.00054794,120]
[356865249,1743343839247,-500.0,0.00054794,120]
[356865250,1743343839256,-500.0,0.00054794,120]
[356865251,1743343839265,-516.80833297,0.00054794,120]
[356865252,1743343839274,-500.0,0.00054794,120]
[356865253,1743343839283,-523.51146533,0.00054794,120]
[356865254,1743343839292,-500.0,0.00054794,120]
[356865255,1743343839301,-500.0,0.00054794,120]
[356865256,1743343839310,-509.46457147,0.00054794,120]
[356865257,1743343839319,-152.23652784,0.00054794,120]
[356865258,1743343839328,-512.9402826,0.00054794,120]
[356865259,1743343839337,-208.18162158,0.00054794,120]
[356865260,1743343839346,-520.99216707,0.00054794,120]
[356865261,1743343839355,-500.0,0.00054794,120]
[356865262,1743343839365,-1235.5,0.00054794,120]
[356865263,1743343839374,-525.21,0.00054794,120]
[356865264,1743343839383,-622.20795145,0.00054794,120]
[356865265,1743343839392,-500.0,0.00054794,120]
[356865266,1743343839401,-512.63288142,0.00054794,120]
[356865267,1743343839410,-500.0,0.00054794,120]
[356865268,1743343839420,-500.0,0.00054794,120]
[356865269,1743343839429,-504.32326274,0.00054794,120]
[356865270,1743343839438,-500.0,0.00054794,120]
[356865271,1743343839447,-500.0,0.00054794,120]
[356865272,1743343839456,-192.05807125,0.00054794,120]
[356865273,1743343839465,-500.0,0.00054794,120]
[356865274,1743343839475,-500.0,0.00054794,120]
[356865275,1743343839484,-500.0,0.00054794,120]
[356865276,1743343839493,-534.84,0.00054794,120]
[356865277,1743343839502,-500.0,0.00054794,120]
[356865278,1743343839511,-500.0,0.00054794,120]
[356865279,1743343839520,-500.0,0.00054794,120]
[356865280,1743343839530,-500.0,0.00054794,120]
[356865281,1743343839539,-500.0,0.00054794,120]
[356865282,1743343839548,-500.0,0.00054794,120]
[356865283,1743343839558,-578.21,0.00054794,120]
[356865284,1743343839567,-500.0,0.00054794,120]
[356865285,1743343839577,-500.0,0.00054794,120]
[356865286,1743343839586,-500.0,0.00054794,120]
[356865287,1743343839596,-500.0,0.00054794,120]
[356865288,1743343839605,-500.0,0.00054794,120]
[356865290,1743343839615,-500.0,0.00054794,120]
[356865292,1743343839624,-500.0,0.00054794,120]
[356865294,1743343839633,-500.0,0.00054794,120]
[356865296,1743343839642,-500.0,0.00054794,120]
[356865298,1743343839652,-500.0,0.00054794,120]
[356865300,1743343839661,-500.0,0.00054794,120]
[356865302,1743343839670,-500.0,0.00054794,120]
[356865303,1743343839679,-839.39,0.00054794,120]
[356865304,1743343839688,-500.0,0.00054794,120]
[356865305,1743343839698,-512.33091256,0.00054794,120]
[356865306,1743343839707,-500.0,0.00054794,120]
[356865307,1743343839717,-500.0,0.00054794,120]
[356865308,1743343839726,-510.95,0.00054794,120]
[356865309,1743343839735,-500.0,0.00054794,120]
[356865310,1743343839746,-500.0,0.00054794,120]
[356865311,1743343839755,-523.91241632,0.00054794,120]
[356865312,1743343839765,-500.0,0.00054794,120]
[356865313,1743343839775,-500.0,0.00054794,120]
[356865314,1743343839784,-500.0,0.00054794,120]
[356865315,1743343839793,-500.0,0.00054794,120]
[356865316,1743343839802,-500.0,0.00054794,120]
[356865317,1743343839811,-512.62491989,0.00054794,120]
[356865318,1743343839820,-500.0,0.00054794,120]
[356865319,1743343839830,-500.0,0.00054794,120]
[356865320,1743343839839,-500.0,0.00054794,120]
[356865321,1743343839848,-1301.39,0.00054794,120]
[356865322,1743343839858,-500.0,0.00054794,120]
[356865323,1743343839867,-500.0,0.00054794,120]
[356865324,1743343839876,-1404.07,0.00054794,120]
[356865325,1743343839885,-500.0,0.00054794,120]
[356865326,1743343839894,-500.0,0.00054794,120]
[356865327,1743343839903,-500.0,0.00054794,120]
[356865328,1743343839912,-500.0,0.00054794,120]
[356865329,1743343839922,-500.0,0.00054794,120]
[356865330,1743343839931,-1194.06,0.00054794,120]
[356865331,1743343839941,-292.96656971,0.00054794,120]
[356865332,1743343839949,-512.12055023,0.00054794,120]
[356865333,1743343839958,-575.86,0.00054794,120]
[356865334,1743343839968,-500.0,0.00054794,120]
[356865335,1743343839978,-500.0,0.00054794,120]
[356865336,1743343839987,-1246.82,0.00054794,120]
[356865337,1743343839998,-244.09504206,0.00054794,120]
[356865338,1743343840008,-5707.71,0.00054794,60]
[356865339,1743343840018,-500.0,0.00054794,120]
[356865340,1743343840028,-169.22059223,0.00054794,2]
[356865341,1743343840038,-500.0,0.00054794,120]
[356865342,1743343840047,-1345.59,0.00054794,7]
[356865343,1743343840057,-500.0,0.00054794,120]
[356865344,1743343840066,-500.0,0.00054794,120]
[356865345,1743343840076,-176.01802202,0.00054794,120]
[356865346,1743343840085,-500.0,0.00054794,120]
[356865347,1743343840094,-500.0,0.00054794,120]
[356865348,1743343840104,-500.0,0.00054794,120]
[356865349,1743343840117,-500.0,0.00054794,120]
[356865350,1743343840127,-529.97888113,0.00054794,120]
[356865351,1743343840137,-500.0,0.00054794,120]
[356865352,1743343840147,-1000.0,0.00054794,120]
[356865353,1743343840156,-500.0,0.00054794,120]
[356865354,1743343840168,-500.0,0.00054794,2]
[356865355,1743343840178,-500.0,0.00054794,120]
[356865356,1743343840188,-500.0,0.00054794,120]
[356865357,1743343840198,-500.0,0.00054794,120]
[356865358,1743343840208,-2883.23,0.00054794,120]
[356865359,1743343840217,-661.69,0.00054794,120]
[356865360,1743343840227,-1256.61,0.00054794,120]
[356865361,1743343840237,-500.0,0.00054794,120]
[356865362,1743343840246,-541.77993044,0.00054794,120]
[356865363,1743343840256,-603.3091625,0.00054794,120]
[356865364,1743343840266,-523.39255015,0.00054794,120]
[356865365,1743343840275,-500.0,0.00054794,120]
[356865366,1743343840285,-500.0,0.00054794,120]
[356865367,1743343840294,-500.0,0.00054794,120]
[356865368,1743343840303,-500.0,0.00054794,120]
[356865369,1743343840313,-500.0,0.00054794,120]
[356865370,1743343840322,-500.0,0.00054794,120]
[356865371,1743343840331,-503.71,0.00054794,120]
[356865372,1743343840341,-500.0,0.00054794,120]
[356865373,1743343840350,-168.37110265,0.00054794,120]
[356865374,1743343840360,-798.54,0.00054794,120]
[356865375,1743343840369,-500.0,0.00054794,120]
[356865376,1743343840378,-500.0,0.00054794,120]
[356865377,1743343840387,-500.0,0.00054794,120]
[356865378,1743343840396,-500.0,0.00054794,120]
[356865379,1743343840406,-531.27896063,0.00054794,120]
[356865380,1743343840416,-500.0,0.00054794,120]
[356865381,1743343840427,-500.0,0.00054794,120]
[356865382,1743343840436,-500.0,0.00054794,120]
[356865383,1743343840445,-500.0,0.00054794,120]
[356865384,1743343840454,-500.0,0.00054794,120]
[356865385,1743343840463,-662.33,0.00054794,120]
[356865386,1743343840472,-500.0,0.00054794,120]
[356865387,1743343840481,-1557.36,0.00054794,120]
[356865388,1743343840491,-500.0,0.00054794,120]
[356865389,1743343840500,-637.36741664,0.00054794,120]
[356865390,1743343840509,-500.0,0.00054794,120]
[356865391,1743343840518,-500.0,0.00054794,120]
[356865392,1743343840527,-500.0,0.00054794,120]
[356865393,1743343840536,-570.00898899,0.00054794,120]
[356865394,1743343840545,-500.0,0.00054794,120]
[356865395,1743343840555,-3165.56,0.00054794,120]
[356865396,1743343840563,-500.0,0.00054794,120]
[356865397,1743343840573,-983.49,0.00054794,120]
[356865398,1743343840582,-500.0,0.00054794,120]
[356865399,1743343840591,-500.0,0.00054794,120]
[356865400,1743343840600,-500.0,0.00054794,120]
[356865401,1743343840609,-500.0,0.00054794,120]
[356865402,1743343840618,-500.0,0.00054794,120]
[356865403,1743343840628,-578.46518675,0.00054794,120]
[356865404,1743343840637,-500.0,0.00054794,120]
[356865405,1743343840646,-500.0,0.00054794,120]
[356865406,1743343840656,-500.0,0.00054794,120]
[356865407,1743343840665,-500.0,0.00054794,120]
[356865408,1743343840674,-2000.0,0.00054794,2]
[356865409,1743343840684,-500.0,0.00054794,120]
[356865410,1743343840693,-500.0,0.00054794,120]
[356865411,1743343840703,-500.0,0.00054794,120]
[356865412,1743343840712,-500.0,0.00054794,120]
[356865413,1743343840721,-1917.97,0.00054794,120]
[356865414,1743343840731,-500.0,0.00054794,120]
[356865415,1743343840742,-500.0,0.00054794,120]
[356865416,1743343840753,-589.38117926,0.00054794,120]
[356865417,1743343840764,-543.84,0.00054794,120]
[356865418,1743343840773,-500.0,0.00054794,120]
[356865419,1743343840783,-4000.0,0.00054795,30]
[356865420,1743343840792,-23458.009927,0.00054818,4]
[356865421,1743343840801,-500.0,0.00054828,120]
[356865422,1743343840810,-500.0,0.00054828,120]
[356865423,1743343840819,-500.0,0.00054828,120]
[356865424,1743343840828,-500.0,0.00054828,120]
[356865425,1743343840837,-882.0,0.00054828,120]
[356865426,1743343840846,-500.0,0.00054828,120]
[356865427,1743343840854,-500.0,0.00054828,120]
[356865428,1743343840863,-500.0,0.00054828,120]
[356865429,1743343840873,-500.0,0.00054828,120]
[356865430,1743343840882,-500.0,0.00054828,120]
[356865431,1743343840891,-500.0,0.00054828,120]
[356865432,1743343840900,-500.0,0.00054828,120]
[356865433,1743343840909,-500.0,0.00054828,120]
[356865434,1743343840918,-500.0,0.00054828,120]
[356865435,1743343840927,-500.0,0.00054828,120]
[356865436,1743343840936,-500.0,0.00054828,120]
[356865437,1743343840945,-500.0,0.00054828,120]
[356865438,1743343840954,-500.0,0.00054828,120]
[356865439,1743343840963,-500.0,0.00054828,120]
[356865440,1743343840972,-500.0,0.00054828,120]
[356865441,1743343840981,-500.0,0.00054828,120]
[356865442,1743343840991,-500.0,0.00054828,120]
[356865443,1743343841000,-500.0,0.00054828,120]
[356865444,1743343841009,-500.0,0.00054828,120]
[356865445,1743343841018,-500.0,0.00054828,120]
[356865446,1743343841027,-500.0,0.00054828,120]
[356865447,1743343841036,-500.0,0.00054828,120]
[356865448,1743343841045,-500.0,0.00054828,120]
[356865449,1743343841055,-500.0,0.00054828,120]
[356865450,1743343841065,-500.0,0.00054828,120]
[356865451,1743343841074,-500.0,0.00054828,120]
[356865452,1743343841083,-500.0,0.00054828,120]
[356865453,1743343841093,-500.0,0.00054828,120]
[356865454,1743343841102,-500.0,0.00054828,120]
[356865455,1743343841112,-500.0,0.00054828,120]
[356865456,1743343841122,-500.0,0.00054828,120]
[356865457,1743343841231,-500.0,0.00054828,120]
[356865458,1743343841240,-500.0,0.00054828,120]
[356865459,1743343841250,-500.0,0.00054828,120]
[356865460,1743343841259,-500.0,0.00054828,120]
[356865461,1743343841268,-500.0,0.00054828,120]
[356865462,1743343841277,-500.0,0.00054828,120]
[356865463,1743343841286,-500.0,0.00054828,120]
[356865464,1743343841295,-500.0,0.00054828,120]
[356865465,1743343841305,-500.0,0.00054828,120]
[356865466,1743343841314,-500.0,0.00054828,120]
[356865467,1743343841323,-500.0,0.00054828,120]
[356865468,1743343841331,-500.0,0.00054828,120]
[356865469,1743343841341,-500.0,0.00054828,120]
[356865470,1743343841350,-878.0,0.00054828,120]
[356865471,1743343841359,-150.49952969,0.00054831,120]
[356865472,1743343841368,-4767.91805949,0.00054838,120]
[356865473,1743343841378,-23458.009927,0.0005489,4]
[356865474,1743343841387,-688.09,0.00054899,2]
[356865475,1743343841396,-500.0,0.00054899,120]
[356865476,1743343841406,-610.97,0.00054899,120]
[356865477,1743343841415,-20000.0,0.000549,30]
[356865478,1743343841424,-240.33017215,0.000549,120]
[356865479,1743343841433,-192.7167692,0.000549,58]
[356865480,1743343841442,-737.73787311,0.000549,30]
[356865481,1743343841451,-150.49952969,0.000549,120]
[356865482,1743343841460,-23458.009927,0.00054969,4]
[356865483,1743343841469,-23458.009927,0.0005497,4]
[356865484,1743343841479,-500.0,0.00054973,15]
[356865485,1743343841488,-502.23740161,0.00054973,15]
[356865486,1743343841498,-500.79818494,0.00054973,14]
[356865487,1743343841507,-500.0,0.00054979,120]
[356865488,1743343841516,-43943.39868427,0.0005498,120]
[356865489,1743343841525,-211122.089343,0.0005498,4]
[356865490,1743343841534,-1354.61665118,0.00054986,120]
[356865491,1743343841543,-466.0,0.00054986,120]
[356865492,1743343841552,-688.09,0.00054989,2]
[356865493,1743343841560,-688.09,0.00054989,2]
[356865494,1743343841570,-688.09,0.00054989,2]
[356865495,1743343841579,-688.09,0.00054989,2]
[356865496,1743343841588,-500.0,0.00054989,120]
[356865497,1743343841598,-500.0,0.00054989,120]
[356865498,1743343841607,-500.0,0.00054989,120]
[356865499,1743343841617,-500.0,0.00054989,120]
[356865500,1743343841626,-500.0,0.00054989,120]
[356865501,1743343841635,-500.0,0.00054989,120]
[356865502,1743343841644,-500.0,0.00054989,120]
[356865503,1743343841654,-610.97,0.00054989,120]
[356865504,1743343841663,-610.97,0.00054989,120]
[356865505,1743343841671,-610.97,0.00054989,120]
[356865506,1743343841681,-610.97,0.00054989,120]
[356865507,1743343841689,-575.50305523,0.0005499,7]
[356865508,1743343841699,-1000.0,0.00054999,120]
[356865509,1743343841708,-688.09,0.00054999,2]
[356865510,1743343841718,-688.09,0.00054999,2]
[356865511,1743343841726,-688.09,0.00054999,2]
[356865512,1743343841735,-688.09,0.00054999,2]
[356865513,1743343841744,-688.09,0.00054999,2]
[356865514,1743343841754,-688.09,0.00054999,2]
[356865515,1743343841763,-688.09,0.00054999,2]
[356865516,1743343841772,-688.09,0.00054999,2]
[356865517,1743343841781,-688.09,0.00054999,2]
[356865518,1743343841790,-271.77004362,0.00054999,120]
[356865519,1743343841799,-500.0,0.00054999,120]
[356865520,1743343841808,-500.0,0.00054999,120]
[356865521,1743343841817,-500.0,0.00054999,120]
[356865522,1743343841826,-500.0,0.00054999,120]
[356865523,1743343841835,-500.0,0.00054999,120]
[356865524,1743343841845,-500.0,0.00054999,120]
[356865525,1743343841854,-500.0,0.00054999,120]
[356865526,1743343841863,-500.0,0.00054999,120]
[356865527,1743343841872,-500.0,0.00054999,120]
[356865528,1743343841881,-610.97,0.00054999,120]
[356865529,1743343841891,-610.97,0.00054999,120]
[356865530,1743343841900,-610.97,0.00054999,120]
[356865531,1743343841910,-610.97,0.00054999,120]
[356865532,1743343841919,-610.97,0.00054999,120]
[356865533,1743343841928,-610.97,0.00054999,120]
[356865534,1743343841938,-610.97,0.00054999,120]
[356865535,1743343841947,-610.97,0.00054999,120]
[356865536,1743343841956,-610.97,0.00054999,120]
[356865537,1743343841965,-1734.0,0.00055,25]
[356865538,1743343841975,-81719.81266763,0.00055,5]
[356865539,1743343841984,-83590.0,0.00055,15]
[356865540,1743343841994,-500.0,0.00055,30]
[356865541,1743343842003,-1002.69,0.00055,10]
[356865542,1743343842013,-2500.0,0.00055,30]
[356865543,1743343842022,-1079.80291803,0.00055,30]
[356865544,1743343842032,-2167.77960956,0.00055,120]
[356865545,1743343842042,-210.40005714,0.00055,120]
[356865546,1743343842052,-862230.4124847,0.00055,120]
[356865547,1743343842269,-49382.66962179,0.00055,120]
[356865618,1743343843143,-435.67892979,0.00054794,120]
[356865621,1743343843157,-64.32107021,0.00054794,120]
[356865623,1743343843166,-500.0,0.00054794,120]
[356865625,1743343843175,-500.0,0.00054794,120]
[356865627,1743343843185,-88386.91789351,0.00055,120]
[356865628,1743343843195,-56879.77801624,0.00055,120]
[356865631,1743343843206,-3026.8129994,0.00055,120]
[356865633,1743343843218,-3045.0420155,0.00055,120]
[356865635,1743343843229,-748.26893567,0.00055,120]
[356865637,1743343843240,-1546.39082211,0.00055,120]
[356865640,1743343843257,-58252.44774584,0.00055,120]
[356865642,1743343843268,-70314.15372057,0.00055,120]
[356865645,1743343843281,-877.63,0.00055,120]
[356865661,1743343843573,-269.3866462,0.00054794,120]
[356865662,1743343843583,-3591.2308807,0.00055,120]
[356865663,1743343843594,-1070.0,0.00055,120]
[356865669,1743343849723,-471.35338205,0.00055,120]
[356865670,1743343850047,-1500.0,0.00054794,120]
[356865671,1743343850057,-10980.84057125,0.00055,120]
[356865672,1743343850163,-778.59773351,0.00055,120]
[356865673,1743343850178,-828.82,0.00055,120]
[356865675,1743344155169,-156.84,0.000507,48]
[356865676,1743344155197,-156.84,0.000507,48]
[356865677,1743344155228,-292.4506053,0.00053349,4]
[356865678,1743344155253,-1000.0,0.00054454,120]
[356865679,1743344155280,-1000.0,0.00054694,2]
[356865680,1743344155307,-500.0,0.00054793,120]
[356865681,1743344155514,-500.0,0.00054793,120]
[356865682,1743344155546,-155.0,0.00054793,120]
[356865683,1743344155573,-300.0,0.00054793,9]
[356865684,1743344155602,-500.0,0.00054794,120]
[356865685,1743344155630,-500.0,0.00054794,120]
[356865686,1743344155658,-500.0,0.00054794,120]
[356865687,1743344155686,-500.0,0.00054794,120]
[356865688,1743344155712,-500.0,0.00054794,120]
[356865689,1743344155737,-500.0,0.00054794,120]
[356865690,1743344155763,-597.36506201,0.00054794,120]
[356865691,1743344155788,-1549.65,0.00054794,120]
[356865692,1743344155814,-1699.09,0.00054794,2]
[356865693,1743344155838,-2681.66,0.00054794,120]
[356865694,1743344155862,-500.0,0.00054794,120]
[356865695,1743344155887,-500.0,0.00054794,120]
[356865696,1743344155912,-591.55849923,0.00054794,120]
[356865697,1743344155937,-500.0,0.00054794,120]
[356865698,1743344155964,-500.0,0.00054794,120]
[356865699,1743344155990,-1658.77,0.00054794,120]
[356865700,1743344156016,-500.0,0.00054794,120]
[356865701,1743344156042,-500.0,0.00054794,120]
[356865702,1743344156067,-585.47748089,0.00054794,120]
[356865703,1743344156092,-500.0,0.00054794,120]
[356865704,1743344156119,-537.31230026,0.00054794,120]
[356865705,1743344156145,-562.62654708,0.00054794,120]
[356865706,1743344156174,-500.0,0.00054794,120]
[356865707,1743344156200,-500.0,0.00054794,120]
[356865708,1743344156227,-500.0,0.00054794,120]
[356865709,1743344156254,-500.0,0.00054794,120]
[356865710,1743344156283,-500.0,0.00054794,120]
[356865711,1743344156310,-500.0,0.00054794,120]
[356865712,1743344156335,-500.0,0.00054794,120]
[356865713,1743344156363,-475.35950523,0.00054794,120]
[356865714,1743344157214,-150.0,0.00054454,120]
[356865715,1743344157246,-24.64049477,0.00054794,120]
[356865716,1743344157274,-500.0,0.00054794,120]
[356865717,1743344157300,-500.0,0.00054794,120]
[356865718,1743344157331,-500.0,0.00054794,120]
[356865719,1743344157357,-500.0,0.00054794,120]
[356865720,1743344157382,-350.0,0.00054794,120]
[356865721,1743344157407,-500.0,0.00054794,120]
[356865722,1743344157432,-500.0,0.00054794,120]
[356865723,1743344157457,-500.0,0.00054794,120]
[356865724,1743344157481,-500.0,0.00054794,120]
[356865725,1743344157507,-500.0,0.00054794,120]
[356865726,1743344157533,-638.80628656,0.00054794,120]
[356865727,1743344157558,-634.01828814,0.00054794,120]
[356865728,1743344157582,-500.0,0.00054794,120]
[356865729,1743344157606,-500.0,0.00054794,2]
[356865730,1743344157630,-500.0,0.00054794,120]
[356865731,1743344157655,-500.0,0.00054794,120]
[356865732,1743344157679,-500.0,0.00054794,120]
[356865733,1743344157706,-500.0,0.00054794,3]
[356865734,1743344157732,-497.29139754,0.00054794,120]
[356865735,1743344157758,-500.0,0.00054794,120]
[356865736,1743344157783,-500.0,0.00054794,120]
[356865737,1743344157810,-697.94,0.00054794,120]
[356865738,1743344157836,-500.0,0.00054794,120]
[356865739,1743344157862,-500.0,0.00054794,120]
[356865740,1743344157888,-503.33,0.00054794,120]
[356865741,1743344157927,-500.0,0.00054794,120]
[356865742,1743344157957,-500.0,0.00054794,120]
[356865743,1743344157985,-500.0,0.00054794,120]
[356865744,1743344158013,-500.0,0.00054794,120]
[356865745,1743344158041,-500.0,0.00054794,120]
[356865746,1743344158068,-5054.95,0.00054794,120]
[356865747,1743344158095,-500.0,0.00054794,120]
[356865748,1743344158123,-501.06,0.00054794,120]
[356865749,1743344158150,-500.0,0.00054794,120]
[356865750,1743344158176,-523.96020783,0.00054794,120]
[356865751,1743344158202,-500.0,0.00054794,120]
[356865752,1743344158231,-500.0,0.00054794,120]
[356865753,1743344158257,-568.66537684,0.00054794,120]
[356865754,1743344158284,-643.02196453,0.00054794,120]
[356865755,1743344158310,-212.31598379,0.00054794,120]
[356865756,1743344158663,-287.68401621,0.00054794,120]
[356865757,1743344158688,-500.0,0.00054794,120]
[356865758,1743344158714,-460.7291067,0.00054794,120]
[356865759,1743344158739,-1671.16,0.00054794,120]
[356865760,1743344158930,-500.0,0.00054794,120]
[356865761,1743344158955,-500.0,0.00054794,120]
[356865762,1743344158981,-500.0,0.00054794,120]
[356865763,1743344159008,-500.0,0.00054794,120]
[356865764,1743344159034,-500.0,0.00054794,120]
[356865765,1743344159059,-2494.78,0.00054794,7]
[356865766,1743344159084,-500.0,0.00054794,120]
[356865767,1743344159109,-500.0,0.00054794,120]
[356865768,1743344159135,-500.0,0.00054794,120]
[356865769,1743344159161,-500.0,0.00054794,120]
[356865770,1743344159186,-500.0,0.00054794,120]
[356865771,1743344159211,-500.0,0.00054794,120]
[356865772,1743344159239,-500.0,0.00054794,120]
[356865773,1743344159265,-500.0,0.00054794,120]
[356865774,1743344159290,-500.0,0.00054794,120]
[356865775,1743344159317,-500.0,0.00054794,120]
[356865776,1743344159341,-500.0,0.00054794,120]
[356865777,1743344159365,-500.0,0.00054794,120]
[356865778,1743344159390,-500.0,0.00054794,120]
[356865779,1743344159414,-1080.01,0.00054794,100]
[356865780,1743344159438,-500.0,0.00054794,120]
[356865781,1743344159464,-619.23,0.00054794,120]
[356865782,1743344159490,-500.0,0.00054794,120]
[356865783,1743344159515,-500.0,0.00054794,120]
[356865784,1743344159540,-500.0,0.00054794,120]
[356865785,1743344159564,-500.0,0.00054794,120]
[356865786,1743344159589,-500.0,0.00054794,120]
[356865787,1743344159613,-500.0,0.00054794,120]
[356865788,1743344159638,-500.0,0.00054794,120]
[356865789,1743344159665,-500.0,0.00054794,120]
[356865790,1743344159690,-500.0,0.00054794,120]
[356865791,1743344159715,-500.0,0.00054794,120]
[356865792,1743344159739,-1035.75,0.00054794,120]
[356865793,1743344159764,-500.0,0.00054794,120]
[356865794,1743344159788,-500.0,0.00054794,120]
[356865795,1743344159813,-500.0,0.00054794,2]
[356865796,1743344159839,-500.0,0.00054794,120]
[356865797,1743344159864,-350.65687709,0.00054794,120]
[356865798,1743344160273,-149.34312291,0.00054794,120]
[356865799,1743344160301,-500.0,0.00054794,120]
[356865800,1743344160328,-500.0,0.00054794,120]
[356865801,1743344160354,-500.0,0.00054794,120]
[356865802,1743344160378,-500.0,0.00054794,120]
[356865803,1743344160404,-500.0,0.00054794,120]
[356865804,1743344160430,-1184.02,0.00054794,120]
[356865805,1743344160455,-500.0,0.00054794,120]
[356865806,1743344160480,-612.43,0.00054794,120]
[356865807,1743344160506,-1144.31,0.00054794,120]
[356865808,1743344160532,-500.0,0.00054794,120]
[356865809,1743344160557,-500.0,0.00054794,120]